bitfinex-derivatives/quotes_BNBF0:USTF0_20250511
["timestamp","ask_amount","ask_price","bid_price","bid_amount"]
[1746957544438,0.30364679,658.66,657.64,1.177278]
[1746957544631,0.26440755,658.62,657.64,1.177278]
[1746957544938,0.26440755,658.62,657.65,1.177278]
[1746957545734,0.26440755,658.62,657.66,1.177278]
[1746957546443,0.26440755,658.62,657.67,1.177278]
[1746957547341,2.27464412,658.66,657.68,1.177278]
[1746957547642,0.26440353,658.61,657.69,1.177278]
[1746957548242,0.26440353,658.61,657.7,1.177278]
[1746957548842,0.26440353,658.61,657.71,1.177278]
[1746957549543,0.26440353,658.61,657.72,1.177278]
[1746957550045,0.26440353,658.61,657.73,1.177278]
[1746957550246,2.27464412,658.66,657.73,1.177278]
[1746957550445,2.27464412,658.66,657.74,1.177278]
[1746957550642,0.26439751,658.6,657.52,1.177278]
[1746957551542,0.30367907,658.59,657.52,1.177278]
[1746957551849,0.30367907,658.59,656.67,0.95933815]
[1746957551850,0.30367907,658.59,657.53,1.177278]
[1746957552247,0.30367907,658.59,657.54,1.177278]
[1746957552747,0.30367907,658.59,656.67,0.95933815]
[1746957552946,0.30367907,658.59,656.69,0.3045577]
[1746957553342,0.30367907,658.59,656.7,1.17723845]
[1746957553550,0.26453719,658.58,656.72,0.30454379]
[1746957553848,0.30368829,658.57,656.73,1.17723845]
[1746957554049,0.30368829,658.57,656.75,0.30452988]
[1746957554852,0.30368829,658.57,656.76,1.17723845]
[1746957555045,0.30368829,658.57,656.78,0.30451597]
[1746957555251,0.30368829,658.57,656.79,1.17723845]
[1746957555549,0.30368829,658.57,656.81,0.30450206]
[1746957556051,0.30368829,658.57,656.82,1.17723845]
[1746957556448,0.30368829,658.57,656.84,0.30448815]
[1746957556651,0.30368829,658.57,656.85,1.17723845]
[1746957556851,0.30368829,658.57,656.86,1.17723845]
[1746957557251,0.30368829,658.57,656.87,1.17723845]
[1746957557447,0.30368829,658.57,656.89,0.30446497]
[1746957557647,0.30368829,658.57,656.9,1.17723845]
[1746957557849,0.30368829,658.57,656.92,0.30445107]
[1746957558051,0.30368829,658.57,656.93,1.17723845]
[1746957558252,0.30368829,658.57,656.95,0.30443717]
[1746957558554,0.30368829,658.57,656.96,1.17723845]
[1746957558853,0.30368829,658.57,656.98,0.30442327]
[1746957559148,0.30368829,658.57,656.99,1.17723845]
[1746957559353,0.30368829,658.57,657.01,0.30440936]
[1746957559550,0.26450201,658.56,657.01,0.30440936]
[1746957559747,0.30369751,658.55,657.02,1.17723845]
[1746957559954,0.30369751,658.55,657.03,0.3044001]
[1746957560254,0.30369751,658.55,657.04,1.17723845]
[1746957560454,0.30369751,658.55,657.05,0.30439083]
[1746957560855,0.30369751,658.55,657.06,1.17723845]
[1746957561156,0.30369751,658.55,657.07,0.30438157]
[1746957561354,0.30369751,658.55,657.08,1.17723845]
[1746957561555,0.30369751,658.55,657.09,0.3043723]
[1746957561851,0.30369751,658.55,657.1,1.17723845]
[1746957562556,0.30369751,658.55,657.11,1.48160149]
[1746957562757,0.26448994,658.54,657.12,1.48159686]
[1746957563056,0.26448994,658.54,657.13,0.30435378]
[1746957563255,0.26448994,658.54,657.14,1.17723845]
[1746957563455,0.26448994,658.54,657.15,0.30434451]
[1746957563754,0.26448994,658.54,657.16,1.17723845]
[1746957563956,0.26448994,658.54,657.17,0.30433525]
[1746957564359,0.26448994,658.54,657.18,1.17723845]
[1746957564553,0.26448994,658.54,657.19,1.48156444]
[1746957564951,0.26448994,658.54,657.2,0.30432136]
[1746957565355,0.30369751,658.55,657.21,1.17723845]
[1746957565552,0.30369751,658.55,657.22,0.3043121]
[1746957565753,0.26444472,658.54,657.23,1.17723845]
[1746957565954,0.26444472,658.54,657.24,1.17723845]
[1746957566254,0.26444472,658.54,657.25,1.17723845]
[1746957566756,0.26444472,658.54,657.26,1.17723845]
[1746957567356,0.26444472,658.54,657.27,1.17723845]
[1746957567757,0.26444472,658.54,657.28,1.17723845]
[1746957568356,0.30369751,658.55,657.29,1.17723845]
[1746957568558,0.26446582,658.53,657.29,1.17723845]
[1746957568758,0.26446582,658.53,657.3,1.17723845]
[1746957569159,0.26446582,658.53,657.31,1.17723845]
[1746957569758,0.26446582,658.53,657.32,1.17723845]
[1746957570260,0.26446582,658.53,657.33,1.17723845]
[1746957570959,0.26446582,658.53,657.34,1.17723845]
[1746957571255,0.30369751,658.55,657.35,1.17723845]
[1746957571561,0.30369751,658.55,657.36,1.17723845]
[1746957571959,0.30369751,658.55,657.37,1.17723845]
[1746957572359,0.30369751,658.55,657.38,1.17723845]
[1746957572859,0.30369751,658.55,657.39,1.17723845]
[1746957573461,0.30369751,658.55,657.4,1.17723845]
[1746957573961,0.26432722,658.54,657.4,1.17723845]
[1746957574461,0.30369751,658.55,657.41,1.17723845]
[1746957574856,0.30369751,658.55,657.42,1.17723845]
[1746957575163,0.30369751,658.55,657.43,1.17723845]
[1746957575663,0.30369751,658.55,657.44,1.17723845]
[1746957576162,0.30369751,658.55,657.45,1.17723845]
[1746957576762,0.30369751,658.55,657.46,1.17723845]
[1746957577264,0.30369751,658.55,657.47,1.17723845]
[1746957577563,0.26437039,658.54,657.48,1.17723845]
[1746957578264,0.26437039,658.54,657.49,1.17723845]
[1746957578963,0.26437039,658.54,657.5,1.17723845]
[1746957579766,0.26437039,658.54,657.51,1.17723845]
[1746957580366,0.30369751,658.55,657.51,1.17723845]
[1746957580569,0.30369751,658.55,657.52,1.17723845]
[1746957581062,0.30369751,658.55,657.53,1.17723845]
[1746957581771,0.30369751,658.55,657.54,1.17723845]
[1746957582268,0.30369751,658.55,657.55,1.17723845]
[1746957582568,0.26438546,658.54,657.56,1.17723845]
[1746957582968,0.26438546,658.54,657.57,1.17723845]
[1746957583263,0.30369751,658.55,657.57,1.17723845]
[1746957583469,0.30369751,658.55,657.58,1.17723845]
[1746957583669,0.26443669,658.53,657.58,1.17723845]
[1746957583864,0.26443669,658.53,657.59,1.17723845]
[1746957584468,0.26443669,658.53,657.6,1.17723845]
[1746957584768,0.26443669,658.53,657.23,0.30430747]
[1746957585363,0.26443669,658.53,657.24,1.17499143]
[1746957585568,0.26443669,658.53,657.24,1.43955074]
[1746957585761,0.26443669,658.53,657.25,1.17499143]
[1746957586263,0.26443669,658.53,657.26,1.17499143]
[1746957586469,0.30369751,658.55,657.26,1.17499143]
[1746957586968,0.30369751,658.55,657.27,1.17499143]
[1746957587968,0.30369751,658.55,657.28,1.17499143]
[1746957588163,0.30369751,658.55,657.29,1.17499143]
[1746957588570,0.30369751,658.55,657.3,1.17499143]
[1746957588970,0.30369751,658.55,657.31,1.17499143]
[1746957589372,0.30369751,658.55,657.32,1.17496916]
[1746957589572,0.26442162,658.54,657.32,1.17496916]
[1746957589971,0.26442162,658.54,657.33,1.17496916]
[1746957590375,0.26442162,658.54,657.34,1.17496916]
[1746957590873,0.26442162,658.54,657.35,1.17496916]
[1746957591173,0.26442162,658.54,657.36,1.17496916]
[1746957591675,0.26442162,658.54,657.37,1.17496916]
[1746957592272,0.26442162,658.54,657.38,1.17496916]
[1746957592478,0.30369751,658.55,657.39,1.17496916]
[1746957592676,0.26445678,658.53,657.39,1.17496916]
[1746957593279,0.26445678,658.53,657.4,1.17496916]
[1746957593882,0.26445678,658.53,657.41,1.17496916]
[1746957594479,0.26445678,658.53,657.42,1.17496916]
[1746957595080,0.26445678,658.53,657.43,1.17496916]
[1746957595275,0.30369751,658.55,657.43,1.17496916]
[1746957595474,0.30369751,658.55,657.44,1.17496916]
[1746957595674,0.26445075,658.52,657.44,1.17496916]
[1746957595883,0.26445075,658.52,657.45,1.17496916]
[1746957596680,0.26445075,658.52,657.46,1.17496916]
[1746957596979,0.26445075,658.52,657.47,1.17496916]
[1746957597480,0.26445075,658.52,657.48,1.17496916]
[1746957597979,0.26445075,658.52,657.49,1.17496916]
[1746957598381,0.30369751,658.55,657.49,1.17496916]
[1746957598573,0.30369751,658.55,657.5,1.17496916]
[1746957598778,0.26444472,658.51,657.5,1.17496916]
[1746957599080,0.26444472,658.51,657.51,1.17496916]
[1746957599882,0.26444472,658.51,657.52,1.17496916]
[1746957600282,0.26444472,658.51,657.53,1.17496916]
[1746957600786,0.26444472,658.51,657.54,1.17559744]
[1746957601285,0.30369751,658.55,657.55,1.17559744]
[1746957601684,0.26442764,658.54,657.55,1.17559744]
[1746957602185,0.26442764,658.54,657.56,1.17559744]
[1746957602383,0.26442764,658.54,657.57,1.17559744]
[1746957602984,0.26442764,658.54,657.58,1.17559744]
[1746957603385,0.26442764,658.54,657.59,1.17559744]
[1746957603687,0.26442764,658.54,657.23,0.30430747]
[1746957603688,0.26442764,658.54,657.6,1.17559744]
[1746957604385,0.30369751,658.55,657.61,1.17559744]
[1746957604686,0.26442764,658.54,657.61,1.17559744]
[1746957604886,0.26442764,658.54,657.62,1.17559744]
[1746957605386,0.26442764,658.54,657.63,1.17559744]
[1746957605688,0.26442764,658.54,657.64,1.17559744]
[1746957606188,0.26442764,658.54,657.65,1.17559744]
[1746957606587,0.26442764,658.54,657.66,1.17559744]
[1746957607185,0.26442764,658.54,657.23,0.30430747]
[1746957607485,0.30369751,658.55,657.24,1.17661355]
[1746957607690,0.30369751,658.55,657.25,0.30429821]
[1746957607990,0.30369751,658.55,657.26,1.17661355]
[1746957608190,0.30369751,658.55,657.27,0.30428895]
[1746957608492,0.30369751,658.55,657.28,1.17661355]
[1746957608692,0.30369751,658.55,657.29,1.17661355]
[1746957609193,0.30369751,658.55,657.3,1.17661355]
[1746957609994,0.30369751,658.55,657.31,1.17661355]
[1746957610893,0.30369751,658.55,657.32,1.17661355]
[1746957611594,0.30369751,658.55,657.33,1.17661355]
[1746957612296,0.30369751,658.55,657.34,1.17661355]
[1746957612797,0.30369751,658.55,657.35,1.17661355]
[1746957613096,0.30369751,658.55,657.36,1.17661355]
[1746957613496,0.30369751,658.55,657.37,1.17661355]
[1746957613891,0.30369751,658.55,657.38,1.17661355]
[1746957614499,0.30369751,658.55,657.39,1.17661355]
[1746957614895,0.30369751,658.55,657.4,1.17661355]
[1746957615095,0.30369751,658.55,657.41,1.17661355]
[1746957615896,0.30369751,658.55,657.42,1.17661355]
[1746957616096,0.30369751,658.55,657.43,1.17661355]
[1746957616897,0.30369751,658.55,657.44,1.17661355]
[1746957617597,0.30369751,658.55,657.45,1.17661355]
[1746957618098,0.30369751,658.55,657.46,1.17661355]
[1746957618397,0.30369751,658.55,657.47,1.17661355]
[1746957618798,0.30369751,658.55,657.48,1.17661355]
[1746957619202,0.30369751,658.55,657.49,1.17661355]
[1746957619600,0.30369751,658.55,657.5,1.17661355]
[1746957619996,0.30369751,658.55,657.5,1.48079605]
[1746957620201,0.30369751,658.55,657.51,1.17661355]
[1746957620703,1.97099733,659.31,657.51,1.17661355]
[1746957620902,0.30335664,659.29,657.52,1.17611246]
[1746957621202,0.30335664,659.29,657.53,0.30416863]
[1746957621402,0.30335664,659.29,657.54,1.17611246]
[1746957621703,0.26429309,659.28,657.55,0.30415937]
[1746957622002,0.26429309,659.28,657.56,1.17611246]
[1746957622403,0.30335664,659.29,657.56,1.17611246]
[1746957622697,0.30335664,659.29,657.57,1.17611246]
[1746957623203,0.30335664,659.29,657.58,1.17611246]
[1746957623505,0.30335664,659.29,657.59,0.30414087]
[1746957624002,0.30335664,659.29,657.6,1.17611246]
[1746957624404,0.30335664,659.29,657.61,0.30413162]
[1746957625509,0.26425797,659.28,657.61,0.30413162]
[1746957625705,0.30337044,659.26,657.61,0.30413162]
[1746957627206,0.30337044,659.26,657.62,1.17611246]
[1746957627705,0.30337044,659.26,657.63,1.17611246]
[1746957628104,0.30337044,659.26,657.64,1.17611246]
[1746957628608,0.26426399,659.25,657.65,1.17611246]
[1746957628907,0.26426399,659.25,657.66,1.17611246]
[1746957629409,0.26426399,659.25,657.67,1.48021634]
[1746957629808,0.26426399,659.25,657.68,1.17611246]
[1746957630606,0.26426399,659.25,657.69,1.17611246]
[1746957631210,0.26426399,659.25,657.7,1.17611246]
[1746957631411,0.30337044,659.26,657.7,1.17611246]
[1746957631807,0.30337044,659.26,657.71,1.17611246]
[1746957632007,0.30337044,659.26,657.72,1.17611246]
[1746957632206,0.30337044,659.26,657.73,0.30407614]
[1746957632913,0.30337044,659.26,657.74,1.17611246]
[1746957633614,0.30337044,659.26,657.75,1.17611246]
[1746957634112,0.30337044,659.26,657.76,1.17611246]
[1746957634318,0.30337044,659.26,657.77,1.17611246]
[1746957634816,0.30337044,659.26,657.78,1.17611246]
[1746957635418,0.30337044,659.26,657.79,1.17611246]
[1746957636016,0.30337044,659.26,657.8,1.17611246]
[1746957636317,0.30337044,659.26,657.81,1.17611246]
[1746957637217,0.30337044,659.26,657.82,1.17611246]
[1746957637817,0.30337044,659.26,657.83,1.17611246]
[1746957638122,0.30337044,659.26,657.84,1.17611246]
[1746957638522,0.30337044,659.26,657.85,1.17611246]
[1746957639023,0.30337044,659.26,657.86,1.17611246]
[1746957639417,0.30337044,659.26,657.87,1.17611246]
[1746957639922,0.30337044,659.26,657.88,1.17611246]
[1746957640822,0.30337044,659.26,657.89,1.17611246]
[1746957641625,0.30337044,659.26,657.74,0.26418475]
[1746957641822,0.30337044,659.26,657.75,0.30406689]
[1746957642224,0.30337044,659.26,657.76,1.16301809]
[1746957642524,0.30337044,659.26,657.77,0.30405764]
[1746957643124,0.30337044,659.26,657.78,1.16301809]
[1746957643325,0.30337044,659.26,657.79,0.3040484]
[1746957643619,0.30337044,659.26,657.79,1.46706649]
[1746957643825,0.30337044,659.26,657.8,1.16301809]
[1746957644018,0.30337044,659.26,657.81,0.30403916]
[1746957644323,0.30337044,659.26,657.82,1.16301809]
[1746957644526,0.30337044,659.26,657.82,1.46705262]
[1746957644724,0.30337044,659.26,657.83,1.16301809]
[1746957645327,0.30337044,659.26,657.84,1.16301809]
[1746957646221,0.30337044,659.26,657.85,1.16301809]
[1746957646727,0.26414564,659.25,657.86,1.16301809]
[1746957647026,0.30337964,659.24,657.86,1.16301809]
[1746957647226,0.30337964,659.24,657.87,1.16301809]
[1746957647826,0.30337964,659.24,657.88,1.16301809]
[1746957648227,0.30337964,659.24,657.89,1.16301809]
[1746957648926,0.30337964,659.24,657.82,0.30403453]
[1746957649428,0.30337964,659.24,657.83,1.16230053]
[1746957650126,0.30337964,659.24,657.84,1.16230053]
[1746957650622,0.30337964,659.24,657.85,1.16230053]
[1746957651328,0.30337964,659.24,657.82,0.30403453]
[1746957652027,0.30337964,659.24,657.83,1.16285759]
[1746957652627,0.30337964,659.24,657.84,1.16285759]
[1746957653126,0.30337964,659.24,657.85,1.16285759]
[1746957653627,0.30337964,659.24,657.82,0.30403453]
[1746957654130,0.30337964,659.24,657.83,1.16262724]
[1746957654328,0.30337964,659.24,657.84,1.16262724]
[1746957654529,0.26421383,659.23,657.84,1.16262724]
[1746957654822,0.30339345,659.21,657.84,1.16262724]
[1746957655027,0.30339345,659.21,657.82,0.30403453]
[1746957658626,0.26426098,659.2,657.82,0.30403453]
[1746957658831,0.30340726,659.18,657.82,0.30403453]
[1746957661635,0.26426299,659.17,657.82,0.30403453]
[1746957662335,0.30341646,659.16,657.82,0.30403453]
[1746957664636,0.26425797,659.15,657.82,0.30403453]
[1746957666438,0.26425797,659.15,657.83,1.16452773]
[1746957666939,0.26425797,659.15,657.84,1.16452773]
[1746957667336,0.30341646,659.16,657.84,1.16452773]
[1746957667939,0.30341646,659.16,657.85,1.16452773]
[1746957668839,0.30341646,659.16,657.83,1.16452773]
[1746957675540,0.26420079,659.15,657.83,1.16452773]
[1746957675843,0.30342567,659.14,657.83,1.16452773]
[1746957678445,0.26425396,659.13,657.83,1.16452773]
[1746957678646,0.30343488,659.12,657.83,1.16452773]
[1746957678943,0.30343488,659.12,657.84,1.16452773]
[1746957679243,0.30343488,659.12,657.85,1.16452773]
[1746957679644,0.26425897,659.11,657.85,1.16452773]
[1746957679844,0.26425897,659.11,657.86,1.16452773]
[1746957680044,0.30344409,659.1,657.86,1.16452773]
[1746957680345,0.30344409,659.1,657.84,1.16452773]
[1746957682647,0.26428105,659.09,657.84,1.16452773]
[1746957682849,0.30345329,659.08,657.83,1.16452773]
[1746957685751,0.26422988,659.07,657.83,1.16452773]
[1746957686051,0.3034625,659.06,657.83,1.16452773]
[1746957688653,0.26428205,659.05,657.83,1.16452773]
[1746957689354,0.30347171,659.04,657.83,1.16452773]
[1746957689655,0.30347171,659.04,657.82,0.30403453]
[1746957689954,0.30347171,659.04,657.84,1.17086604]
[1746957690354,0.30347171,659.04,657.85,1.17086604]
[1746957691156,0.30347171,659.04,657.86,1.17086604]
[1746957691656,0.26428105,659.03,657.86,1.17086604]
[1746957691858,0.30348092,659.02,657.87,1.17086604]
[1746957692155,0.30348092,659.02,657.88,1.17086604]
[1746957692654,0.30348092,659.02,657.89,1.17086604]
[1746957693156,0.30348092,659.02,657.9,1.17086604]
[1746957693558,0.30348092,659.02,657.91,1.17086604]
[1746957694159,0.30348092,659.02,657.92,1.17086604]
[1746957694757,0.30348092,659.02,657.82,0.30403453]
[1746957695458,0.30348092,659.02,657.83,1.17084831]
[1746957695757,0.30348092,659.02,657.84,1.17084831]
[1746957696259,0.30348092,659.02,657.85,1.17084831]
[1746957696558,0.26426399,659.01,657.86,1.17084831]
[1746957696758,0.30349013,659.0,657.86,1.17084831]
[1746957697258,0.30349013,659.0,657.87,1.17084831]
[1746957697860,0.30349013,659.0,657.88,1.17084831]
[1746957698361,0.30349013,659.0,657.83,1.17084831]
[1746957698660,0.30349013,659.0,657.84,1.17084831]
[1746957699261,0.30349013,659.0,657.85,1.17084831]
[1746957699662,0.30349013,659.0,657.86,1.17084831]
[1746957700363,0.30349013,659.0,657.87,1.17084831]
[1746957701062,0.30349013,659.0,657.83,1.17084831]
[1746957701563,0.30349013,659.0,657.84,1.17084831]
[1746957702165,0.30349013,659.0,657.85,1.17084831]
[1746957702766,0.30349013,659.0,657.86,1.17084831]
[1746957703666,0.30349013,659.0,657.87,1.17084831]
[1746957703868,0.26423991,658.99,657.87,1.17084831]
[1746957704070,0.30349934,658.98,657.87,1.17084831]
[1746957704265,0.30349934,658.98,657.88,1.17084831]
[1746957704769,0.30349934,658.98,657.89,1.17084831]
[1746957705366,0.30349934,658.98,657.83,1.17084831]
[1746957705769,0.30349934,658.98,657.84,1.17084831]
[1746957706069,0.30349934,658.98,657.85,1.17084831]
[1746957706970,0.30349934,658.98,657.86,1.17084831]
[1746957707372,0.30349934,658.98,657.87,1.17084831]
[1746957707971,0.30349934,658.98,657.88,1.17084831]
[1746957708366,0.30349934,658.98,657.89,1.17084831]
[1746957709372,0.30349934,658.98,657.9,1.17084831]
[1746957709571,0.30349934,658.98,657.91,1.17084831]
[1746957709867,0.30349934,658.98,657.92,1.17084831]
[1746957710574,0.30349934,658.98,657.93,1.17084831]
[1746957710974,0.30349934,658.98,657.94,1.17084831]
[1746957711376,0.30349934,658.98,657.95,1.17084831]
[1746957711779,0.30349934,658.98,657.96,1.17084831]
[1746957712379,0.30349934,658.98,657.97,1.17084831]
[1746957712880,0.30349934,658.98,657.98,1.17084831]
[1746957713278,0.30349934,658.98,657.99,1.17084831]
[1746957713778,0.30349934,658.98,658.0,1.17084831]
[1746957714578,0.30349934,658.98,658.01,1.17084831]
[1746957715381,0.30349934,658.98,658.02,1.17084831]
[1746957716280,0.30349934,658.98,658.03,1.17084831]
[1746957716881,0.30349934,658.98,658.04,1.17084831]
[1746957717281,0.30349934,658.98,658.05,1.17084831]
[1746957717677,0.30349934,658.98,658.06,1.17084831]
[1746957718182,0.30349934,658.98,658.07,1.17084831]
[1746957718581,0.30349934,658.98,658.08,1.17084831]
[1746957719176,0.30349934,658.98,658.09,1.17084831]
[1746957719884,0.30349934,658.98,658.1,1.17084831]
[1746957720383,0.30349934,658.98,658.11,1.17084831]
[1746957720783,0.30349934,658.98,658.12,1.17084831]
[1746957720982,0.30349934,658.98,657.82,0.30403453]
[1746957721386,0.30349934,658.98,657.83,1.16864896]
[1746957721886,0.30349934,658.98,657.84,1.16864896]
[1746957722387,0.30349934,658.98,657.85,1.16864896]
[1746957722886,0.30349934,658.98,657.86,1.16864896]
[1746957723287,0.30349934,658.98,657.87,1.16864896]
[1746957723881,0.30349934,658.98,657.88,1.16864896]
[1746957724386,0.30349934,658.98,657.89,1.16864896]
[1746957725083,0.30349934,658.98,657.9,1.16864896]
[1746957725383,0.30349934,658.98,657.91,1.16864896]
[1746957725683,0.30349934,658.98,657.92,1.16864896]
[1746957726289,0.30349934,658.98,657.93,1.16864896]
[1746957726891,0.30349934,658.98,657.94,1.16864896]
[1746957727484,0.30349934,658.98,657.95,1.16864896]
[1746957728490,0.30349934,658.98,657.96,1.16864896]
[1746957729488,0.30349934,658.98,657.97,1.16864896]
[1746957729891,0.30349934,658.98,657.98,1.16864896]
[1746957730793,0.30349934,658.98,657.99,1.16864896]
[1746957731292,0.30349934,658.98,658.0,1.16864896]
[1746957731591,0.30349934,658.98,658.01,1.16864896]
[1746957731992,0.30349934,658.98,658.02,1.16864896]
[1746957732792,0.30349934,658.98,658.03,1.16864896]
[1746957733393,0.30349934,658.98,658.04,1.16864896]
[1746957733893,0.30349934,658.98,658.05,1.16864896]
[1746957734196,0.30349934,658.98,658.06,1.16864896]
[1746957734795,0.30349934,658.98,658.07,1.16864896]
[1746957735291,0.30349934,658.98,658.08,1.16864896]
[1746957735596,0.30349934,658.98,658.09,1.16864896]
[1746957735996,0.30349934,658.98,657.82,0.30403453]
[1746957736398,0.30349934,658.98,657.83,1.1656396]
[1746957736598,0.30349934,658.98,657.83,1.42986146]
[1746957736898,0.30349934,658.98,657.84,1.46966489]
[1746957737098,0.30349934,658.98,657.85,1.46966027]
[1746957737299,0.30349934,658.98,657.86,0.30401605]
[1746957737799,0.30349934,658.98,657.87,1.1656396]
[1746957738000,0.30349934,658.98,657.87,1.46965103]
[1746957738201,0.30349934,658.98,657.88,1.1656396]
[1746957738603,0.30349934,658.98,657.89,1.1656396]
[1746957738902,0.30349934,658.98,657.9,1.1656396]
[1746957739999,0.30349934,658.98,657.91,1.1656396]
[1746957740803,0.30349934,658.98,657.92,1.1656396]
[1746957741404,0.30349934,658.98,657.93,1.1656396]
[1746957741703,0.30349934,658.98,657.94,1.1656396]
[1746957742404,0.30349934,658.98,657.95,1.1656396]
[1746957742905,0.30349934,658.98,657.96,1.1656396]
[1746957743206,0.30349934,658.98,657.97,1.1656396]
[1746957743906,0.30349934,658.98,657.98,1.1656396]
[1746957744407,0.30349934,658.98,657.99,1.1656396]
[1746957744709,0.30349934,658.98,658.0,1.1656396]
[1746957745406,0.30349934,658.98,658.01,1.1656396]
[1746957746009,0.30349934,658.98,658.02,1.1656396]
[1746957746509,0.30349934,658.98,658.03,1.1656396]
[1746957747109,0.30349934,658.98,658.04,1.1656396]
[1746957747510,0.30349934,658.98,658.05,1.1656396]
[1746957748211,0.30349934,658.98,658.06,1.1656396]
[1746957749012,0.30349934,658.98,658.07,1.1656396]
[1746957749512,0.30349934,658.98,658.08,1.1656396]
[1746957749914,0.30349934,658.98,657.88,1.1656396]
[1746957750811,0.30349934,658.98,657.89,1.1656396]
[1746957751516,0.30349934,658.98,657.9,1.1656396]
[1746957752015,0.30349934,658.98,657.91,1.1656396]
[1746957752416,0.30349934,658.98,657.92,1.1656396]
[1746957752915,0.30349934,658.98,657.93,1.1656396]
[1746957753516,0.30349934,658.98,657.94,1.1656396]
[1746957754418,0.30349934,658.98,657.95,1.1656396]
[1746957754711,0.30349934,658.98,657.96,1.1656396]
[1746957755115,0.30349934,658.98,657.97,1.1656396]
[1746957755617,0.30349934,658.98,657.98,1.1656396]
[1746957756218,0.30349934,658.98,657.99,1.1656396]
[1746957756519,0.30349934,658.98,658.0,1.1656396]
[1746957757220,0.30349934,658.98,658.01,1.1656396]
[1746957757714,0.30349934,658.98,658.02,1.1656396]
[1746957758319,0.30349934,658.98,658.03,1.1656396]
[1746957758725,0.30349934,658.98,658.04,1.1656396]
[1746957759221,0.30349934,658.98,658.05,1.1656396]
[1746957759418,0.30349934,658.98,658.06,1.1656396]
[1746957759724,0.30349934,658.98,658.07,1.1656396]
[1746957760322,0.30349934,658.98,658.08,1.1656396]
[1746957760724,0.30349934,658.98,658.09,1.1656396]
[1746957761023,0.30349934,658.98,658.1,1.1656396]
[1746957761624,0.30349934,658.98,658.11,1.1656396]
[1746957762124,0.30349934,658.98,658.12,1.1656396]
[1746957762425,0.30349934,658.98,658.13,1.1656396]
[1746957762628,0.30349934,658.98,658.14,1.1656396]
[1746957763725,0.30349934,658.98,658.15,1.1656396]
[1746957764226,0.30349934,658.98,658.16,1.1656396]
[1746957764725,0.30349934,658.98,658.17,1.1656396]
[1746957765126,0.30349934,658.98,658.18,1.1656396]
[1746957765626,0.30349934,658.98,657.87,0.30401143]
[1746957765627,0.30349934,658.98,658.19,1.1656396]
[1746957766128,0.30349934,658.98,658.2,1.1656396]
[1746957766829,0.30349934,658.98,657.88,1.1656396]
[1746957767024,0.30349934,658.98,657.89,1.1656396]
[1746957767631,0.30349934,658.98,657.9,1.1656396]
[1746957768033,0.30349934,658.98,657.91,1.1656396]
[1746957768332,0.30349934,658.98,657.92,1.1656396]
[1746957768831,0.30349934,658.98,657.93,1.1656396]
[1746957769835,0.30349934,658.98,657.94,1.1656396]
[1746957770732,0.30349934,658.98,657.95,1.1656396]
[1746957771035,0.30349934,658.98,657.96,1.1656396]
[1746957771333,0.30349934,658.98,657.97,1.1656396]
[1746957772337,0.30349934,658.98,657.98,1.1656396]
[1746957773237,0.30349934,658.98,657.99,1.1656396]
[1746957773838,0.30349934,658.98,658.0,1.1656396]
[1746957774233,0.30349934,658.98,658.01,1.1656396]
[1746957774533,0.30349934,658.98,658.02,1.1656396]
[1746957775342,0.30349934,658.98,658.03,1.1656396]
[1746957775839,0.30349934,658.98,658.04,1.1656396]
[1746957776139,0.30349934,658.98,658.05,1.1656396]
[1746957776542,0.30349934,658.98,658.06,1.1656396]
[1746957777336,0.30349934,658.98,658.07,1.1656396]
[1746957778042,0.30349934,658.98,658.08,1.1656396]
[1746957778341,0.30349934,658.98,658.09,1.1656396]
[1746957778842,0.30349934,658.98,658.1,1.1656396]
[1746957779542,0.30349934,658.98,658.11,1.1656396]
[1746957779743,0.30349934,658.98,658.12,1.1656396]
[1746957779941,0.30349934,658.98,658.01,0.26413362]
[1746957779942,0.30349934,658.98,658.13,1.1656396]
[1746957780944,0.30349934,658.98,658.14,1.1656396]
[1746957781643,0.30349934,658.98,658.15,1.1656396]
[1746957782145,0.30349934,658.98,658.16,1.1656396]
[1746957782643,0.30349934,658.98,658.17,1.1656396]
[1746957783346,0.30349934,658.98,658.18,1.1656396]
[1746957783846,0.30349934,658.98,658.19,1.1656396]
[1746957784448,0.30349934,658.98,658.2,1.1656396]
[1746957784942,0.30349934,658.98,658.21,1.1656396]
[1746957785346,0.30349934,658.98,657.87,0.30401143]
[1746957785943,0.30349934,658.98,657.88,1.16949123]
[1746957786242,0.30349934,658.98,657.89,1.16949123]
[1746957786949,0.30349934,658.98,657.9,1.16949123]
[1746957787148,0.30349934,658.98,657.9,1.43372412]
[1746957787452,0.30349934,658.98,657.91,1.16949123]
[1746957787948,0.30349934,658.98,657.92,1.16949123]
[1746957788644,0.30349934,658.98,657.93,1.16949123]
[1746957789148,0.30349934,658.98,657.94,1.16949123]
[1746957789951,0.30349934,658.98,657.95,1.16949123]
[1746957790451,0.30349934,658.98,657.96,1.16949123]
[1746957791151,0.30349934,658.98,657.87,0.30401143]
[1746957791753,0.30349934,658.98,657.88,1.16777097]
[1746957792246,0.30349934,658.98,657.89,1.16777097]
[1746957792547,0.30349934,658.98,657.9,1.16777097]
[1746957793051,0.30349934,658.98,657.91,1.16777097]
[1746957793651,0.26421383,658.97,657.91,1.16777097]